bitfinex/quotes_BTCUSD_20250525
["timestamp","ask_amount","ask_price","bid_price","bid_amount"]
[1748208973759,0.24455962,107270.0,107260.0,0.40705412]
[1748208980270,0.24455962,107270.0,107260.0,0.41637665]
[1748208980531,0.01150409,107270.0,107260.0,1.62705672]
[1748208981281,0.00550409,107270.0,107260.0,1.62605672]
[1748208981460,0.00050409,107270.0,107260.0,1.62505672]
[1748208981681,0.00950409,107270.0,107260.0,1.62705672]
[1748208982345,0.00450409,107270.0,107260.0,1.62605672]
[1748208982541,0.00450409,107270.0,107260.0,1.64059757]
[1748208982755,0.00750409,107270.0,107260.0,1.64059757]
[1748208983451,0.00350409,107270.0,107260.0,2.42073208]
[1748208983814,0.00650409,107270.0,107260.0,2.42173208]
[1748208984067,0.00350409,107270.0,107260.0,1.55230678]
[1748208984477,0.00550409,107270.0,107260.0,1.55230678]
[1748208984905,0.00250409,107270.0,107260.0,1.55230678]
[1748208985107,0.00450409,107270.0,107260.0,1.55430678]
[1748208985523,0.00250409,107270.0,107260.0,1.55430678]
[1748208985859,0.00250409,107270.0,107260.0,1.55530678]
[1748208988694,0.14619344,107310.0,107300.0,0.22975121]
[1748208988695,0.03466381,107310.0,107300.0,0.22975121]
[1748208989010,0.00215122,107310.0,107300.0,1.17810049]
[1748208990027,0.00215122,107310.0,107300.0,1.17910049]
[1748208990229,0.00715122,107310.0,107300.0,1.17910049]
[1748208990867,0.00715122,107310.0,107300.0,1.51910049]
[1748208991026,0.01215122,107310.0,107300.0,1.52010049]
[1748208992239,0.00715122,107310.0,107300.0,1.51910049]
[1748208992664,0.01015122,107310.0,107300.0,1.51910049]
[1748208992906,0.00515122,107310.0,107300.0,1.51810049]
[1748208993183,0.00715122,107310.0,107300.0,1.51810049]
[1748208995277,0.00715122,107310.0,107300.0,0.82425677]
[1748208995482,0.00715122,107310.0,107300.0,1.51810049]
[1748208995705,0.00715122,107310.0,107300.0,1.36914049]
[1748208995883,0.00715122,107310.0,107300.0,0.66597772]
[1748208996081,0.2143507,107300.0,107290.0,0.2050355]
[1748208996293,0.03727708,107300.0,107290.0,0.46214133]
[1748208996490,0.22367036,107300.0,107290.0,0.80214133]
[1748208996669,0.22367027,107300.0,107290.0,0.80214133]
[1748208996874,0.20503225,107300.0,107290.0,0.77419666]
[1748208997095,0.20503225,107300.0,107290.0,0.78351693]
[1748208997259,0.20703225,107300.0,107290.0,0.77419666]
[1748208997460,0.20703225,107300.0,107290.0,0.79283728]
[1748208997461,0.21003225,107300.0,107290.0,0.79283728]
[1748208998052,0.21003225,107300.0,107290.0,0.69397119]
[1748208998251,0.21935191,107300.0,107290.0,0.70329128]
[1748208998987,0.21935191,107300.0,107290.0,0.71261129]
[1748208999405,0.21935191,107300.0,107290.0,0.68465101]
[1748208999621,0.21935191,107300.0,107290.0,0.70329146]
[1748209004026,0.21935087,107300.0,107290.0,1.49600066]
[1748209004234,0.03295707,107300.0,107290.0,1.52880066]
[1748209004369,0.02363784,107300.0,107290.0,1.52880066]
[1748209004556,0.03295698,107300.0,107290.0,1.52880066]
[1748209005308,0.03295698,107300.0,107290.0,1.53252887]
[1748209005895,0.03295698,107300.0,107290.0,0.83868515]
[1748209006246,0.02363784,107300.0,107290.0,0.83868515]
[1748209006973,0.005,107300.0,107290.0,1.53252887]
[1748209007166,0.005,107300.0,107290.0,1.69460887]
[1748209009118,0.005,107300.0,107290.0,1.70414668]
[1748209019280,0.005,107300.0,107290.0,1.69460887]
[1748209019509,0.005,107300.0,107290.0,1.70396662]
[1748209023400,0.005,107300.0,107290.0,1.69460887]
[1748209023967,0.005,107300.0,107290.0,1.7040503]
[1748209024603,0.005,107300.0,107290.0,1.01020658]
[1748209024813,0.005,107300.0,107290.0,1.7040503]
[1748209036128,0.005,107300.0,107290.0,1.79054759]
[1748209039677,0.005,107300.0,107290.0,1.80508844]
[1748209039873,0.005,107300.0,107290.0,2.58542945]
[1748209040264,0.005,107300.0,107290.0,2.59042945]
[1748209040466,0.005,107300.0,107290.0,1.81008844]
[1748209040673,0.002,107300.0,107290.0,1.81008844]
[1748209041093,0.003,107300.0,107290.0,1.81008844]
[1748209041974,0.001,107300.0,107290.0,1.81008844]
[1748209043633,0.001,107300.0,107290.0,2.59042945]
[1748209047428,0.001,107300.0,107290.0,0.31696515]
[1748209047644,0.0035,107300.0,107290.0,1.24622616]
[1748209047853,0.02213819,107300.0,107290.0,1.24622616]
[1748209048003,0.0221381,107300.0,107290.0,1.58622616]
[1748209048203,0.20853208,107300.0,107290.0,0.00372821]
[1748209049023,0.20753208,107300.0,107290.0,0.00372821]
[1748209049750,0.20853208,107300.0,107290.0,0.00372821]
[1748209050146,0.20853208,107300.0,107290.0,0.15264821]
[1748209050353,0.21053208,107300.0,107290.0,0.15264821]
[1748209052862,0.21053208,107300.0,107290.0,0.00372821]
[1748209053078,0.21053208,107300.0,107290.0,0.15264821]
[1748209055694,0.21053208,107300.0,107290.0,0.00372821]
[1748209077044,0.21917942,107300.0,107290.0,0.00372821]
[1748209078363,0.22804782,107300.0,107290.0,0.00372821]
[1748209082144,0.19573101,107290.0,107280.0,0.0397214]
[1748209083367,0.19573101,107290.0,107280.0,0.22614943]
[1748209084880,0.22005997,107290.0,107280.0,0.22614943]
[1748209087463,0.2107397,107290.0,107280.0,0.22614943]
[1748209088024,0.20141935,107290.0,107280.0,0.22614943]
[1748209090147,0.20141935,107290.0,107280.0,0.23547074]
[1748209090354,0.20141935,107290.0,107280.0,0.38443074]
[1748209095945,0.20141935,107290.0,107280.0,0.17936]
[1748209096167,0.20141935,107290.0,107280.0,0.36578803]
[1748209097171,0.20141935,107290.0,107280.0,0.38443074]
[1748209097511,0.20141935,107290.0,107280.0,0.39375196]
[1748209098593,0.26544685,107290.0,107280.0,0.39375196]
[1748209098829,0.26544685,107290.0,107280.0,0.38443074]
[1748209101879,0.0650275,107290.0,107280.0,1.2735887]
[1748209102079,0.0650275,107290.0,107280.0,2.39455926]
[1748209102281,0.0650275,107290.0,107280.0,2.55623926]
[1748209104934,0.0650275,107290.0,107280.0,0.99429814]
[1748209105158,0.001,107290.0,107280.0,0.99429814]
[1748209105363,0.001,107290.0,107280.0,2.55623926]
[1748209106997,0.001,107290.0,107280.0,0.68365814]
[1748209107196,0.0186415,107280.0,107270.0,0.40509323]
[1748209107400,0.21439058,107280.0,107270.0,0.016]
[1748209107546,0.01864322,107270.0,107260.0,0.25615404]
[1748209107761,0.01864322,107270.0,107260.0,0.8346596]
[1748209107963,0.03728714,107270.0,107260.0,0.8346596]
[1748209108161,0.22373255,107270.0,107260.0,0.83465977]
[1748209108368,0.23305482,107270.0,107260.0,0.69502238]
[1748209108675,0.23405482,107270.0,107260.0,0.84398238]
[1748209108882,0.21546197,107270.0,107260.0,0.72646881]
[1748209109104,0.19578541,107260.0,107250.0,0.60819765]
[1748209109330,0.21443142,107260.0,107250.0,0.51875964]
[1748209109544,0.21443142,107260.0,107250.0,0.66295554]
[1748209109745,0.20510881,107260.0,107250.0,0.66295554]
[1748209110283,0.21780138,107260.0,107250.0,0.66295554]
[1748209110645,0.21980138,107260.0,107250.0,0.57340998]
[1748209110949,0.21147851,107260.0,107250.0,0.42444998]
[1748209111185,0.21147851,107260.0,107250.0,0.57340998]
[1748209111861,0.21147851,107260.0,107250.0,0.23340998]
[1748209113830,0.21147851,107260.0,107250.0,0.08444998]
[1748209114130,0.21147851,107260.0,107250.0,0.23340998]
[1748209114707,0.21147851,107260.0,107250.0,0.20090998]
[1748209115717,0.21147851,107260.0,107250.0,0.05194998]
[1748209119611,0.21147851,107260.0,107250.0,0.08454998]
[1748209120047,0.01669257,107260.0,107250.0,0.36057572]
[1748209120271,0.01669257,107260.0,107250.0,1.08286429]
[1748209120272,0.03533762,107260.0,107250.0,1.08286429]
[1748209120463,0.24044608,107260.0,107250.0,0.3885467]
[1748209125278,0.04466032,107260.0,107250.0,0.3885467]
[1748209125488,0.05398328,107260.0,107250.0,0.3885467]
[1748209126777,0.05398319,107260.0,107250.0,0.3885467]
[1748209129174,0.04466032,107260.0,107250.0,0.3885467]
[1748209129380,0.05398319,107260.0,107250.0,0.3885467]
[1748209129591,0.02601501,107260.0,107250.0,0.3885467]
[1748209129804,0.003,107260.0,107250.0,1.58458429]
[1748209132399,0.003,107260.0,107250.0,1.59912514]
[1748209132619,0.00305037,107270.0,107260.0,1.29428961]
[1748209132929,0.00305037,107270.0,107260.0,1.53283517]
[1748209133269,5.037e-05,107270.0,107260.0,1.53283517]
[1748209134141,0.03466381,107310.0,107300.0,0.24495121]
[1748209134333,0.03471419,107310.0,107300.0,0.48349677]
[1748209134924,0.03471419,107310.0,107300.0,0.82349677]
[1748209135468,0.0440322,107310.0,107300.0,0.82349677]
[1748209136012,0.0480322,107310.0,107300.0,0.82349677]
[1748209136142,0.0520322,107310.0,107300.0,0.82449677]
[1748209136357,0.04271419,107310.0,107300.0,0.82449677]
[1748209136580,0.04271419,107310.0,107300.0,1.51881436]
[1748209137593,0.01005038,107310.0,107300.0,1.51881436]
[1748209139279,0.01005038,107310.0,107300.0,1.36981436]
[1748209139491,0.21506328,107310.0,107300.0,0.49927957]
[1748209139699,0.21506328,107310.0,107300.0,0.67635328]
[1748209139916,0.20574492,107310.0,107300.0,0.341]
[1748209140119,0.21124492,107310.0,107300.0,0.001]
[1748209152495,0.20574492,107310.0,107300.0,0.001]
[1748209157716,0.01005038,107310.0,107300.0,1.52110406]
[1748209157940,0.01005038,107310.0,107300.0,1.5187742]
[1748209158156,0.01936856,107310.0,107300.0,1.5187742]
[1748209158371,0.01936856,107310.0,107300.0,0.82445661]
[1748209158830,0.02868683,107310.0,107300.0,0.82445661]
[1748209159440,0.01936856,107310.0,107300.0,0.82445661]
[1748209161452,0.01005038,107310.0,107300.0,1.5187742]
[1748209161888,0.01005038,107310.0,107300.0,0.82445661]
[1748209162108,0.01005038,107310.0,107300.0,1.5187742]
[1748209176862,0.01005038,107310.0,107300.0,1.5467152]
[1748209180729,0.01005038,107310.0,107300.0,2.24103279]
[1748209181375,0.01005038,107310.0,107300.0,1.5467152]
[1748209194369,0.01005038,107310.0,107300.0,2.24103279]
[1748209194578,0.01005038,107310.0,107300.0,1.5467152]
[1748209195741,0.01005038,107310.0,107300.0,2.24103279]
[1748209196440,0.01005038,107310.0,107300.0,2.40235279]
[1748209200254,0.19765961,107330.0,107310.0,0.3713]
[1748209200255,0.002,107330.0,107310.0,0.3713]
[1748209200473,0.002,107330.0,107320.0,2.10796646]
[1748209200474,0.01136672,107330.0,107320.0,2.10796646]
[1748209200674,0.02068352,107330.0,107320.0,2.10796646]
[1748209201095,0.02068343,107330.0,107320.0,2.10796646]
[1748209201298,0.02068343,107330.0,107320.0,2.12426646]
[1748209201510,0.02068334,107330.0,107320.0,2.12426646]
[1748209201732,0.03599996,107330.0,107320.0,2.12426646]
[1748209202172,0.02999996,107330.0,107320.0,2.12426646]
[1748209202390,0.02868334,107330.0,107320.0,2.12526646]
[1748209202598,0.02868316,107330.0,107320.0,2.12526646]
[1748209202778,0.03468316,107330.0,107320.0,2.12626646]
[1748209203176,0.01605036,107330.0,107320.0,2.21581202]
[1748209204117,0.01005036,107330.0,107320.0,2.21481202]
[1748209204813,0.00205036,107330.0,107320.0,2.24174702]
[1748209205214,0.00405036,107330.0,107320.0,2.24174702]
[1748209205647,0.00405036,107330.0,107320.0,2.09282702]
[1748209205846,0.00405036,107330.0,107320.0,2.24174702]
[1748209208617,0.21834141,107330.0,107320.0,1.25792898]
[1748209208820,0.20520843,107330.0,107320.0,1.18319759]
[1748209209580,0.20520843,107330.0,107320.0,1.03431759]
[1748209209787,0.20520843,107330.0,107320.0,1.18319759]
[1748209211357,0.20520843,107330.0,107320.0,1.03431759]
[1748209215568,0.20520843,107330.0,107320.0,0.34]
[1748209215774,0.20520843,107330.0,107320.0,1.03431759]
[1748209217959,0.20520843,107330.0,107320.0,0.34]
[1748209218129,0.20520843,107330.0,107320.0,1.03431759]
[1748209219288,0.26923111,107330.0,107320.0,1.03431759]
[1748209221343,0.26923111,107330.0,107320.0,0.34]
[1748209221559,0.26923111,107330.0,107320.0,1.03431759]
[1748209222996,0.26923111,107330.0,107320.0,0.34]
[1748209223206,0.26923111,107330.0,107320.0,1.03431759]
[1748209224810,0.26373111,107330.0,107320.0,1.03431759]
[1748209226063,0.26373111,107330.0,107320.0,1.26059398]
[1748209226267,0.28236436,107330.0,107320.0,1.97354663]
[1748209226520,0.28236436,107330.0,107320.0,1.98286394]
[1748209226686,0.29168141,107330.0,107320.0,1.98286394]
[1748209227087,0.29168141,107330.0,107320.0,1.97354663]
[1748209227542,0.29168141,107330.0,107320.0,1.98286394]
[1748209227751,0.0867062,107330.0,107320.0,1.98286394]
[1748209227924,0.09602308,107330.0,107320.0,1.98286394]
[1748209231917,0.0320004,107330.0,107320.0,1.98286394]
[1748209233600,0.02268352,107330.0,107320.0,1.98286394]
[1748209233858,0.01336672,107330.0,107320.0,2.0724095]
[1748209234057,0.00405036,107330.0,107320.0,2.0724095]
[1748209234258,0.01336663,107330.0,107320.0,2.0724095]
[1748209234804,0.02268308,107330.0,107320.0,2.0724095]
[1748209235237,0.00405036,107330.0,107320.0,2.0724095]
[1748209235836,0.00405036,107330.0,107320.0,2.1003475]
[1748209237625,0.00405036,107330.0,107320.0,2.0724095]
[1748209251906,0.00405036,107330.0,107320.0,2.24348132]
[1748209263885,0.01336663,107330.0,107320.0,2.24348132]
[1748209264310,0.00405036,107330.0,107320.0,2.24348132]
[1748209264516,0.01336663,107330.0,107320.0,2.24348132]
[1748209269538,0.00405036,107330.0,107320.0,2.24348132]
[1748209271148,0.03726336,107340.0,107330.0,0.55429132]
[1748209271360,0.03726336,107340.0,107330.0,2.29507832]
[1748209272558,0.02795013,107330.0,107320.0,0.21855855]
[1748209272787,0.20497487,107330.0,107320.0,0.7798535]
[1748209272944,0.20497487,107330.0,107320.0,0.9287335]
[1748209273158,0.21047487,107330.0,107320.0,0.9287335]
[1748209273542,0.21047487,107330.0,107320.0,1.2687335]
[1748209273752,0.00931862,107310.0,107300.0,0.0181]
[1748209273932,0.19569454,107310.0,107300.0,0.00205036]
[1748209274152,0.20119454,107310.0,107300.0,0.78190386]
[1748209274362,0.20119454,107310.0,107300.0,1.12190386]
[1748209274569,0.20119454,107310.0,107300.0,0.78190386]
[1748209274765,0.20119454,107310.0,107300.0,0.00205036]
[1748209275011,0.20119454,107310.0,107300.0,0.78190386]
[1748209275270,0.31496275,107310.0,107300.0,0.00205036]
[1748209275694,0.46516095,107310.0,107300.0,0.00205036]
[1748209275900,0.46516095,107310.0,107300.0,0.34205036]
[1748209276102,0.46516095,107310.0,107300.0,0.34405036]
[1748209276348,0.46416095,107310.0,107300.0,0.34405036]
[1748209276545,0.46616095,107310.0,107300.0,0.34205036]
[1748209277129,0.47016095,107310.0,107300.0,0.34305036]
[1748209277331,0.46816095,107310.0,107300.0,0.34305036]
[1748209277717,0.47216095,107310.0,107300.0,0.34305036]
[1748209277935,0.50348813,107310.0,107300.0,0.34305036]
[1748209278623,0.50348813,107310.0,107300.0,0.32122665]
[1748209280277,0.53616771,107310.0,107300.0,0.32122665]
[1748209281978,0.83616771,107310.0,107300.0,0.32122665]
[1748209284536,0.77216095,107310.0,107300.0,0.32122665]
[1748209285080,0.6085801,107310.0,107300.0,1.01523737]
[1748209285284,0.4421601,107310.0,107300.0,1.01523737]
[1748209285452,0.45670095,107310.0,107300.0,1.01523737]
[1748209288589,0.30778095,107310.0,107300.0,1.0400069]
[1748209288796,0.45674095,107310.0,107300.0,1.0400069]
[1748209292427,0.2932401,107310.0,107300.0,1.0562069]
[1748209292635,0.35265454,107310.0,107300.0,1.0562069]
[1748209293625,0.20369454,107310.0,107300.0,1.0562069]
[1748209296583,0.20369454,107310.0,107300.0,0.36219618]
[1748209296802,0.20369454,107310.0,107300.0,1.0562069]
[1748209300685,0.20369454,107310.0,107300.0,1.03438508]
[1748209302619,0.21252393,107310.0,107300.0,1.03438508]
[1748209303535,0.22114645,107310.0,107300.0,1.03438508]
[1748209309186,0.32523286,107310.0,107300.0,1.00278508]
[1748209309419,0.33073286,107310.0,107300.0,0.99341555]
[1748209309767,0.42073286,107310.0,107300.0,0.99341555]
[1748209309976,0.41523286,107310.0,107300.0,0.99341555]
[1748209311171,0.43073286,107310.0,107300.0,1.00260956]
[1748209311531,0.43720314,107310.0,107300.0,1.00260956]
[1748209311837,0.43720314,107310.0,107300.0,0.99341555]
[1748209313275,0.43170314,107310.0,107300.0,0.99341555]
[1748209313987,0.43170314,107310.0,107300.0,1.08002602]
[1748209314203,0.43720314,107310.0,107300.0,1.08002602]
[1748209315269,0.4514567,107310.0,107300.0,1.08002602]
[1748209315691,0.43720314,107310.0,107300.0,1.08002602]
[1748209316266,0.50110991,107310.0,107300.0,0.29940483]
[1748209316711,0.50110991,107310.0,107300.0,1.08002602]
[1748209316971,0.51053297,107310.0,107300.0,1.08002602]
[1748209318047,0.51053297,107310.0,107300.0,0.99336829]
[1748209318744,0.59442306,107310.0,107300.0,0.69496346]
[1748209319254,0.58442306,107310.0,107300.0,0.001]
[1748209319467,0.4938622,107310.0,107300.0,0.001]
[1748209319772,0.55753709,107310.0,107300.0,0.001]
[1748209320174,0.583451,107310.0,107300.0,0.001]
[1748209322288,0.56864305,107310.0,107300.0,0.001]
[1748209322863,0.60816456,107310.0,107300.0,0.001]
[1748209323067,0.65816456,107310.0,107300.0,0.001]
[1748209323463,0.70002122,107310.0,107300.0,0.001]
[1748209324085,0.50571277,107300.0,107290.0,1.03396346]
[1748209324355,0.74971833,107300.0,107290.0,1.03401384]
[1748209324530,0.74971833,107300.0,107290.0,0.34005038]
[1748209324760,0.75834085,107300.0,107290.0,0.34005038]
[1748209325371,0.76917024,107300.0,107290.0,0.34005038]
[1748209325503,0.77564052,107300.0,107290.0,0.34005038]
[1748209326655,0.76917024,107300.0,107290.0,0.34005038]
[1748209327092,0.77117024,107300.0,107290.0,0.34005038]
[1748209327895,0.86069175,107300.0,107290.0,0.34005038]
[1748209328289,0.86716203,107300.0,107290.0,0.34005038]
[1748209328503,0.86716203,107300.0,107290.0,5.038e-05]
[1748209329059,0.21027186,107290.0,107280.0,1.01418736]
[1748209329272,0.29981742,107290.0,107280.0,1.01418736]
[1748209330150,0.30081742,107290.0,107280.0,1.01418736]
[1748209330530,0.30181742,107290.0,107280.0,1.01418736]
[1748209331243,0.46257742,107290.0,107280.0,1.01418736]
[1748209331419,0.46257742,107290.0,107280.0,1.02988736]
[1748209331715,0.46257742,107290.0,107280.0,1.04508736]
[1748209332022,0.61157742,107290.0,107280.0,1.04508736]
[1748209332690,0.61157742,107290.0,107280.0,1.01418736]
[1748209333361,0.61157742,107290.0,107280.0,1.02988736]
[1748209333566,0.61157742,107290.0,107280.0,1.04508736]
[1748209335230,0.64280461,107290.0,107280.0,1.04508736]
[1748209338874,0.67549456,107290.0,107280.0,1.04508736]
[1748209340008,0.67549456,107290.0,107280.0,1.93263986]
[1748209341065,0.68432395,107290.0,107280.0,1.93263986]
[1748209344578,0.69294647,107290.0,107280.0,1.93263986]
[1748209349117,0.69941675,107290.0,107280.0,1.93263986]
[1748209349474,0.69941675,107290.0,107280.0,1.91081263]
[1748209354320,0.6667268,107290.0,107280.0,1.91081263]
[1748209354773,0.5059668,107290.0,107280.0,1.91081263]
[1748209364665,0.34242595,107290.0,107280.0,1.91081263]
[1748209365093,0.49142595,107290.0,107280.0,1.91081263]
[1748209369171,0.28202934,107300.0,107290.0,0.57755163]
[1748209369370,0.3006684,107300.0,107290.0,0.57755163]
[1748209369506,0.30998763,107300.0,107290.0,2.13929149]
[1748209369713,0.30998763,107300.0,107290.0,2.14861184]
[1748209369953,0.31930729,107300.0,107290.0,2.15793193]
[1748209370435,0.27945063,107300.0,107290.0,2.15793193]
[1748209370635,0.24074175,107310.0,107300.0,0.0325]
[1748209370838,0.24074175,107310.0,107300.0,1.78063314]
[1748209371043,0.24074175,107310.0,107300.0,1.93895271]
[1748209371241,0.24074175,107310.0,107300.0,1.9264457]
[1748209371708,0.24074175,107310.0,107300.0,1.72141336]
[1748209372109,0.24474175,107310.0,107300.0,1.91812621]
[1748209372349,0.24474175,107310.0,107300.0,1.936893]
[1748209372559,0.24474175,107310.0,107300.0,1.9275736]
[1748209372729,0.24774175,107310.0,107300.0,1.9275736]
[1748209373756,0.24774175,107310.0,107300.0,1.73186075]
[1748209374330,0.24774175,107310.0,107300.0,1.74806075]
[1748209374730,0.19537592,107310.0,107300.0,1.74806075]
[1748209374883,0.19537592,107310.0,107300.0,1.93445403]
[1748209375286,0.19537592,107310.0,107300.0,1.74806075]
[1748209381979,0.19537592,107310.0,107300.0,1.93445403]
[1748209384199,0.19537592,107310.0,107300.0,1.74806075]
[1748209385703,0.19537592,107310.0,107300.0,1.93445403]
[1748209386051,0.19537592,107310.0,107300.0,0.18632089]
[1748209386256,0.19537592,107310.0,107300.0,1.74806075]
[1748209391276,0.19537592,107310.0,107300.0,2.27445403]
[1748209391583,0.19537592,107310.0,107300.0,2.28377369]
[1748209392289,0.19537592,107310.0,107300.0,2.29309318]
[1748209393632,0.19537592,107310.0,107300.0,2.28377369]
[1748209399584,0.19537592,107310.0,107300.0,2.08806075]
[1748209417139,0.25951011,107310.0,107300.0,2.08806075]
[1748209419859,0.25951011,107310.0,107300.0,2.07861336]
[1748209427780,0.25951011,107310.0,107300.0,1.92961336]
[1748209428166,0.25951011,107310.0,107300.0,1.12186993]
[1748209428307,0.27511011,107310.0,107300.0,1.12186993]
[1748209428761,0.28948898,107310.0,107300.0,0.341]
[1748209428996,0.28948898,107310.0,107300.0,1.12186993]
[1748209430212,0.28378898,107310.0,107300.0,1.12186993]
[1748209430653,0.28378898,107310.0,107300.0,1.90273986]
[1748209430823,0.39357539,107310.0,107300.0,1.11932524]
[1748209432220,0.36080955,107310.0,107300.0,1.11932524]
[1748209432442,0.36969156,107310.0,107300.0,1.11932524]
[1748209433414,0.36399156,107310.0,107300.0,1.11932524]
[1748209436718,0.36399156,107310.0,107300.0,1.09750292]
[1748209440290,0.36969156,107310.0,107300.0,1.09750292]
[1748209440902,0.45969156,107310.0,107300.0,1.09750292]
[1748209443624,0.60865156,107310.0,107300.0,1.09750292]
[1748209453763,0.60295156,107310.0,107300.0,1.09750292]
[1748209459646,0.60295156,107310.0,107300.0,1.07567943]
[1748209460704,0.58735156,107310.0,107300.0,1.07567943]
[1748209461950,0.60255156,107310.0,107300.0,1.07567943]
[1748209462560,0.58735156,107310.0,107300.0,1.07567943]
[1748209464417,0.58735156,107310.0,107300.0,1.09227943]
[1748209466790,0.58735156,107310.0,107300.0,1.10837943]
[1748209467018,0.02042472,107320.0,107310.0,0.54501307]
[1748209467233,0.27182209,107330.0,107320.0,0.22817639]
[1748209467449,0.08562145,107330.0,107320.0,2.29751114]
[1748209467664,0.39797275,107350.0,107340.0,0.56814002]
[1748209467868,0.1837211,107350.0,107340.0,3.06902582]
[1748209468067,0.36835657,107350.0,107340.0,3.08765742]
[1748209468270,0.37767111,107350.0,107340.0,3.09697317]
[1748209468492,0.36835588,107350.0,107340.0,3.09697334]
[1748209468681,0.38698626,107350.0,107340.0,3.09697334]
[1748209468975,0.38698626,107350.0,107340.0,3.08765759]
[1748209469129,0.38698626,107350.0,107340.0,3.09697334]
[1748209469351,0.38698626,107350.0,107340.0,2.31610341]
[1748209469559,0.39098626,107350.0,107340.0,2.30678766]
[1748209469778,0.23888107,107350.0,107340.0,2.30678766]
[1748209469979,0.22956653,107350.0,107340.0,1.42876747]
[1748209470203,0.23456653,107350.0,107340.0,1.43808331]
[1748209471471,0.23456653,107350.0,107340.0,1.44739906]
[1748209472947,0.23456653,107350.0,107340.0,1.45684364]
[1748209473971,0.23456653,107350.0,107340.0,1.44752789]
[1748209474156,0.22525182,107350.0,107340.0,1.44752789]
[1748209474363,0.18636089,107360.0,107350.0,0.54493685]
[1748209474594,0.19567525,107360.0,107350.0,1.76718634]
[1748209474834,0.19567525,107360.0,107350.0,1.75787102]
[1748209475047,0.19567525,107360.0,107350.0,1.06483551]
[1748209475445,0.20067525,107360.0,107350.0,1.06483551]
[1748209476110,0.20467525,107360.0,107350.0,1.06483551]
[1748209476298,0.20067525,107360.0,107350.0,1.06483551]
[1748209476629,0.19867525,107360.0,107350.0,1.06483551]
[1748209477032,0.20067525,107360.0,107350.0,1.06483551]
[1748209477741,0.29022081,107360.0,107350.0,0.85735551]
[1748209478060,0.29022081,107360.0,107350.0,1.19735551]
[1748209478441,0.29022081,107360.0,107350.0,0.85735551]
[1748209478643,0.29022081,107360.0,107350.0,1.19735551]
[1748209478853,0.29022081,107360.0,107350.0,0.50432]
[1748209479057,0.29022081,107360.0,107350.0,1.19735551]
[1748209479680,0.29022081,107360.0,107350.0,1.04843551]
[1748209481059,0.20067525,107360.0,107350.0,1.06383551]
[1748209485075,0.20067525,107360.0,107350.0,1.21271551]
[1748209485288,0.20067525,107360.0,107350.0,1.39902198]
[1748209485527,0.20067525,107360.0,107350.0,1.21271551]
[1748209486319,0.20067525,107360.0,107350.0,1.22203083]
[1748209486524,0.20067525,107360.0,107350.0,1.21271551]
[1748209491014,0.20067525,107360.0,107350.0,1.4083373]
[1748209491253,0.20067525,107360.0,107350.0,1.06383551]
[1748209491432,0.20067525,107360.0,107350.0,1.21271551]
[1748209495586,0.20928225,107360.0,107350.0,1.21271551]
[1748209495812,0.20928225,107360.0,107350.0,1.19090519]
[1748209495952,0.20928225,107360.0,107350.0,1.27754501]
[1748209498816,0.20928225,107360.0,107350.0,1.29314501]
[1748209501610,0.20928225,107360.0,107350.0,1.14426501]
[1748209502196,0.0186335,107330.0,107320.0,0.0338]
[1748209502404,0.31902725,107330.0,107320.0,0.78167533]
[1748209502627,0.33542725,107330.0,107320.0,1.12167533]
[1748209502829,0.33542725,107330.0,107320.0,1.13092197]
[1748209503851,0.33542725,107330.0,107320.0,1.12167533]
[1748209503852,0.30612725,107330.0,107320.0,1.12167533]
[1748209504775,0.3206681,107330.0,107320.0,1.12467533]
[1748209505114,0.3206681,107330.0,107320.0,1.12167533]
[1748209505517,0.3226681,107330.0,107320.0,1.12167533]
[1748209505925,0.3226681,107330.0,107320.0,1.03561095]
[1748209508590,0.3140611,107330.0,107320.0,1.03561095]
[1748209509885,0.3140611,107330.0,107320.0,0.342]
[1748209510124,0.3140611,107330.0,107320.0,1.03561095]
[1748209511859,0.3463611,107330.0,107320.0,1.03561095]
[1748209512682,0.41025455,107330.0,107320.0,0.342]
[1748209514433,0.56997455,107330.0,107320.0,0.342]
[1748209514633,0.53767455,107330.0,107320.0,0.342]
[1748209514848,0.55337455,107330.0,107320.0,1.03561095]
[1748209515288,0.56867455,107330.0,107320.0,0.342]
[1748209517153,0.56867455,107330.0,107320.0,0.32018107]
[1748209518124,0.5231337,107330.0,107320.0,1.04569202]
[1748209518305,0.29250216,107330.0,107320.0,1.25068624]
[1748209518509,0.29250137,107330.0,107320.0,1.96293226]
[1748209518710,0.29250137,107330.0,107320.0,2.12116966]
[1748209519348,0.09684313,107330.0,107320.0,2.11185226]
[1748209519569,0.28318432,107330.0,107320.0,2.09321719]
[1748209519777,0.29250121,107330.0,107320.0,2.11185217]
[1748209519954,0.08752634,107330.0,107320.0,2.11185208]
[1748209520923,0.09684305,107330.0,107320.0,2.11185208]
[1748209521503,0.29250112,107330.0,107320.0,2.11185208]
[1748209521706,0.22860767,107330.0,107320.0,2.11185208]
[1748209524557,0.21929079,107330.0,107320.0,2.11185208]
[1748209524760,0.22860767,107330.0,107320.0,2.11185208]
[1748209525267,0.21929079,107330.0,107320.0,2.11185208]
[1748209525651,0.22860767,107330.0,107320.0,2.11185208]
[1748209526302,0.0329496,107330.0,107320.0,2.11185208]
[1748209528402,0.22860767,107330.0,107320.0,2.11185208]
[1748209529124,0.22860767,107330.0,107320.0,2.12116948]
[1748209529479,0.22860828,107330.0,107320.0,2.10253485]
[1748209529681,0.22860828,107330.0,107320.0,2.11185243]
[1748209533354,0.21929175,107330.0,107320.0,2.10253485]
[1748209535741,0.20997504,107330.0,107320.0,1.94429719]
[1748209536001,0.20997504,107330.0,107320.0,2.10253485]
[1748209536175,0.20997504,107330.0,107320.0,2.09321719]
[1748209536751,0.20997504,107330.0,107320.0,2.10253485]
[1748209537250,0.20997504,107330.0,107320.0,2.09321719]
[1748209538540,0.20997504,107330.0,107320.0,2.11185208]
[1748209538778,0.21929209,107330.0,107320.0,0.72463036]
[1748209538981,0.20997469,107330.0,107320.0,2.11185243]
[1748209539179,0.20997469,107330.0,107320.0,2.10253485]
[1748209540452,0.21929174,107330.0,107320.0,2.12116992]
[1748209540822,0.21929174,107330.0,107320.0,2.1211694]
[1748209541394,0.21929174,107330.0,107320.0,2.111852]
[1748209548359,0.21929174,107330.0,107320.0,2.10253451]
[1748209553944,0.21929174,107330.0,107320.0,0.71531261]
[1748209554099,0.21929174,107330.0,107320.0,2.27522595]
[1748209561685,0.21929174,107330.0,107320.0,2.28454344]
[1748209564421,0.21929174,107330.0,107320.0,2.27522595]
[1748209567458,0.21929174,107330.0,107320.0,2.26590837]
[1748209569642,0.21929174,107330.0,107320.0,2.27522595]
[1748209573021,0.21929174,107330.0,107320.0,2.28454344]
[1748209573625,0.21929174,107330.0,107320.0,2.29386084]
[1748209574033,0.21929174,107330.0,107320.0,2.27522595]
[1748209574265,0.21929174,107330.0,107320.0,2.28454344]
[1748209578163,0.21929174,107330.0,107320.0,0.7246301]
[1748209578330,0.21929174,107330.0,107320.0,2.27522595]
[1748209578470,0.21929174,107330.0,107320.0,2.28454344]